[Event "Uruguayan Championship 2022"]
[Site "Montevideo"]
[Date "2022.04.17"]
[Round "10.6"]
[White "Lopez Azambuja, Nicolas"]
[Black "Roselli Mailhe, Bernardo"]
[Result "1/2-1/2"]
[ECO "A70"]
[WhiteElo "2318"]
[BlackElo "2426"]
[Annotator "TA"]
[PlyCount "145"]
[EventDate "2022.04.08"]
[EventType "tourn"]
[EventCountry "URU"]
[SourceTitle "playchess.com"]
[Source "ChessBase"]
[SourceQuality "1"]
[TimeControl "40/5400+30:1800+30"]

{[%evp 16,145,42,12,6,5,12,0,0,0,0,0,8,9,11,6,10,7,7,0,0,0,0,0,0,0,0,0,0,0,0,-21,-20,-77,-80,-89,-68,-139,-14,-5,-11,-7,-8,-6,-16,-16,-82,-68,0,0,0,-29,-31,-62,-41,-53,-54,-68,-68,-41,-6,-20,0,0,0,0,0,0,0,0,0,0,0,0,0,0,0,0,0,0,0,0,0,0,0,0,0,0,0,0,0,0,0,0,0,0,0,0,0,0,0,0,0,0,0,0,0,0,0,0,0,0,0,0,0,0,0,0,0,0,0,0,0,0,0,0,0,0,0,0,0,0]} 1. d4 {[%emt 0:00:11]} Nf6 {[%emt 0:00:20]} 2. c4 {[%emt 0:00:06]} c5 {[%emt 0:00:13]} 3. d5 {[%emt 0:00:09]} e6 {[%emt 0:00:07]} 4. Nc3 {[%emt 0:00:27]} exd5 {[%emt 0:00:05]} 5. cxd5 {[%emt 0:00:05]} d6 {[%emt 0:00:05]} 6. e4 {[%emt 0:00:24]} g6 {[%emt 0:00:06]} 7. Nf3 {[%emt 0:00:43]} Bg7 {[%emt 0:00:07]} 8. h3 $1 {[%emt 0:00:53][%mdl 4] now scores much better than the old 8.Be2.} O-O {[%emt 0:03:01]} 9. Be3 {[%emt 0:02:16]} Re8 {[%emt 0:06:53] A70: Modern Benoni: 6 e4 g6 7 Nf3.} 10. Bd3 {[%emt 0:03:04]} c4 {[%emt 0:06:46] [#]} 11. Bxc4 $146 {[%emt 0:10:19]} ({Predecessor:} 11. Bc2 b5 12. Nxb5 Qa5+ 13. Nc3 Nxe4 14. Bxe4 Rxe4 15. O-O Rxe3 16. fxe3 Nd7 17. Nd4 {1-0 (25) Predke,A (2682)-Sindarov,J (2609) Warsaw 2021}) 11... Nxe4 {[%emt 0:02:13]} 12. Nxe4 {[%emt 0:00:08]} Rxe4 {[%emt 0:00:05]} 13. Qc2 {[%emt 0:05:18]} Re8 {[%emt 0:10:28]} 14. O-O {[%emt 0:00:40]} Nd7 {[%emt 0:02:40]} 15. Rfd1 {[%emt 0:18:56]} Ne5 {[%emt 0:17:23]} 16. Nxe5 {[%emt 0:04:00]} Bxe5 {[%emt 0:00:17]} 17. Bb5 {[%emt 0:03:12]} Re7 {[%emt 0:11:14]} 18. Bg5 {[%emt 0:11:13]} Rc7 {[%emt 0:06:44] [#] aiming for ...f6.} 19. Qd2 {[%emt 0:00:30]} ({But not} 19. Bxd8 Rxc2 20. f4 Bxb2 $17) 19... Bf6 {[%emt 0:00:07]} 20. Bxf6 {[%emt 0:03:39]} Qxf6 {[%emt 0:00:22]} 21. Rac1 {[%emt 0:00:40]} Rxc1 {[%emt 0:05:06]} 22. Rxc1 {[%emt 0:03:00]} Bf5 {[%emt 0:01:09]} 23. Qb4 {[%emt 0:14:40]} Bxh3 {[%emt 0:04:09] Hoping for ...Qg5.} 24. Rc3 {[%emt 0:02:26] [#]} (24. Bf1 $11) 24... Bf5 $1 $17 {[%emt 0:01:24]} 25. Bf1 {[%emt 0:01:37]} Re8 {[%emt 0:11:57]} 26. Rc1 {[%emt 0:07:31]} ({White should try} 26. Ra3 $15) 26... Rc8 {[%emt 0:00:15]} (26... Re7 $17 {With the idea ...h5.} 27. Qd2 h5) 27. Rxc8+ $11 {[%emt 0:00:45]} Bxc8 {[%emt 0:00:02]} 28. Qa5 {[%emt 0:00:51]} Bf5 {[%emt 0:03:41]} 29. Qxa7 {[%emt 0:00:39]} Qxb2 {[%emt 0:00:07] Strongly threatening ...Qa1.} 30. Qb8+ {[%emt 0:00:06]} Kg7 {[%emt 0:00:05] Threatens to win with ...Qa1.} 31. Qxd6 {[%emt 0:00:30]} Qa1 {[%emt 0:01:37]} ({Of course not} 31... Qxa2 32. Qe5+ Kg8 33. Qe8+ Kg7 34. Qe5+ Kg8 35. Qb8+ Kg7 36. Qe5+ $11) (31... Qd4 $1 $15) 32. Qa3 {[%emt 0:00:54]} Qd4 {[%emt 0:01:27]} 33. d6 {[%emt 0:01:19]} Bd7 {[%emt 0:00:41]} 34. Qb3 {[%emt 0:02:57]} Bc6 {[%emt 0:00:55]} 35. Qg3 {[%emt 0:00:54]} h5 {[%emt 0:00:35]} 36. Qa3 {[%emt 0:00:54]} Kf6 {[%emt 0:00:50]} 37. Qb3 {[%emt 0:00:29]} Qxd6 {[%emt 0:02:04] Threatening ...Qd4.} 38. Bc4 $1 {[%emt 0:00:07] The position is equal.} Qc7 {[%emt 0:00:54]} 39. Qc3+ {[%emt 0:00:22]} Ke7 {[%emt 0:00:13]} 40. Qe3+ {[%emt 0:01:49]} Kd8 {[%emt 0:01:14]} 41. Qd4+ {[%emt 0:31:31]} Ke7 {[%emt 0:32:41]} 42. Qe3+ {[%emt 0:00:25]} Kf8 {[%emt 0:00:00]} 43. Qh6+ {[%emt 0:00:00]} Ke8 {[%emt 0:00:00]} 44. Qh8+ {[%emt 0:00:00]} Ke7 {[%emt 0:00:00]} 45. Bxf7 $1 {[%emt 0:00:00]} Qa5 {[%emt 0:00:00]} 46. Qg7 {[%emt 0:00:00]} Qe1+ {[%emt 0:00:00]} 47. Kh2 {[%emt 0:00:00]} Qxf2 {[%emt 0:00:00][%csl Gc6][%cal Rf2g2]} 48. Bd5+ {[%emt 0:00:00]} Kd6 {[%emt 0:00:00]} 49. Bxc6 {[%emt 0:00:00]} Qh4+ {[%emt 0:00:00]} 50. Kg1 {[%emt 0:00:00]} Qe1+ {[%emt 0:00:00]} 51. Kh2 {[%emt 0:00:00]} Qh4+ {[%emt 0:00:00]} 52. Kg1 {[%emt 0:00:00]} bxc6 {[%emt 0:00:00]} 53. Qxg6+ {[%emt 0:00:00][%mdl 4096] Endgame KQ-KQ} Kc5 {[%emt 0:00:00]} 54. Qc2+ {[%emt 0:00:00]} Kb5 {[%emt 0:00:00]} 55. Qb2+ {[%emt 0:00:00]} Qb4 {[%emt 0:01:35]} 56. Qe2+ {[%emt 0:00:00]} Kb6 {[%emt 0:00:21]} 57. Qxh5 {[%emt 0:00:00]} Qb1+ {[%emt 0:00:07]} 58. Kh2 {[%emt 0:00:00]} Qxa2 {[%emt 0:00:04]} 59. Qg6 {[%emt 0:00:00]} Qd2 {[%emt 0:02:15]} 60. Qe6 {[%emt 0:00:00]} Qc2 {[%emt 0:01:12]} 61. Qd6 {[%emt 0:00:00]} Kb5 {[%emt 0:00:37]} 62. Qd7 {[%emt 0:00:00]} Kb4 {[%emt 0:01:04]} 63. Qb7+ {[%emt 0:00:00]} Ka3 {[%emt 0:00:08]} 64. Qa6+ {[%emt 0:00:00]} Kb2 {[%emt 0:00:26]} 65. Qb6+ {[%emt 0:00:00]} Ka2 {[%emt 0:00:34]} 66. Qa5+ {[%emt 0:00:00]} Kb1 {[%emt 0:00:16]} 67. Qb4+ {[%emt 0:00:00]} Ka1 {[%emt 0:00:38]} 68. Qa3+ {[%emt 0:00:01]} Kb1 {[%emt 0:00:05]} 69. Qb4+ {[%emt 0:00:04]} Ka2 {[%emt 0:00:09]} 70. Qa5+ {[%emt 0:00:06]} Kb3 {[%emt 0:00:11]} 71. Qb6+ {[%emt 0:00:03]} Ka3 {[%emt 0:00:19]} 72. Qa5+ {[%emt 0:00:20]} Kb3 {[%emt 0:00:46]} 73. Qb6+ {[%emt 0:00:10] Weighted Error Value: White=0.07 (flawless) /Black=0.09 (flawless)} 1/2-1/2

[Event "Uruguayan Championship 2022"]
[Site "Montevideo"]
[Date "2022.04.18"]
[Round "11.1"]
[White "Roselli Mailhe, Bernardo"]
[Black "Diaz Hollemaert, Nahuel"]
[Result "0-1"]
[ECO "A50"]
[WhiteElo "2426"]
[BlackElo "2439"]
[Annotator "TA"]
[PlyCount "72"]
[EventDate "2022.04.08"]
[EventType "tourn"]
[EventCountry "URU"]
[SourceTitle "playchess.com"]
[Source "ChessBase"]
[SourceQuality "1"]
[TimeControl "40/5400+30:1800+30"]

{[%evp 9,72,41,47,7,46,57,50,54,61,60,87,86,85,77,86,70,66,70,116,122,126,127,107,102,91,20,17,23,31,23,21,19,71,81,83,62,115,91,98,108,164,153,199,168,165,118,133,71,254,243,231,180,191,161,212,142,184,136,120,-384,-375,-349,-349,-343,-323]} 1. d4 {[%emt 0:00:04]} Nf6 {[%emt 0:04:33]} 2. c4 {[%emt 0:00:09]} b6 {[%emt 0:00:41]} 3. f3 {[%emt 0:06:51]} e6 {[%emt 0:07:49]} 4. e4 {[%emt 0:00:24]} Bb4+ {[%emt 0:00:09]} 5. Bd2 {[%emt 0:02:41]} a5 {[%emt 0:02:24]} 6. Bd3 {[%emt 0:05:10] [#] A50: Queen's Fianchetto Defence (1 d4 Nf6 2 c4 b6).} d5 $146 {[%emt 0:23:48]} ({Predecessor:} 6... d6 7. Ne2 Nc6 8. O-O O-O 9. Bg5 a4 10. a3 Ba5 11. Qxa4 Bd7 12. Qc2 h6 {1-0 (53) Rasulov,V (2478)-Oparin,G (2655) Chess.com INT 2021}) 7. cxd5 {[%emt 0:17:12]} exd5 {[%emt 0:07:30]} 8. e5 {[%emt 0:00:27] White is slightly better.} Nfd7 {[%emt 0:00:44]} 9. Ne2 {[%emt 0:07:50]} Ba6 {[%emt 0:12:48]} 10. Bxa6 {[%emt 0:01:02]} Nxa6 {[%emt 0:00:02]} 11. O-O {[%emt 0:05:13]} O-O {[%emt 0:00:05]} 12. Nbc3 {[%emt 0:05:22]} c6 {[%emt 0:00:24]} 13. a3 {[%emt 0:11:04]} Be7 {[%emt 0:14:40]} (13... Bxc3 $14 14. Bxc3 Nc7) 14. f4 $1 $16 {[%emt 0:01:45]} Re8 {[%emt 0:04:44]} 15. Ng3 {[%emt 0:03:23]} Bf8 {[%emt 0:00:25]} 16. Qg4 {[%emt 0:01:16]} Nc7 {[%emt 0:02:08]} 17. f5 {[%emt 0:05:58]} (17. Nf5 $16 {Threatens to win with Nh6+.} Kh8 18. Qh3) 17... c5 $11 {[%emt 0:04:48]} 18. Bh6 {[%emt 0:01:25][%cal Oh6g7] Hoping for Bxg7!} Kh8 {[%emt 0:00:28]} (18... cxd4 19. Bxg7 $1 {[%mdl 512]} h6 20. Bxh6+ Kh8 21. Bxf8 Nxf8 22. Nh5 $1 $18) 19. Bg5 $36 {[%emt 0:04:29][%mdl 2048] White has some pressure.} f6 {[%emt 0:00:17]} 20. exf6 {[%emt 0:00:40]} gxf6 {[%emt 0:04:03]} (20... Nxf6 $11 {remains equal.} 21. Qh4 Be7) 21. Bh4 $16 {[%emt 0:00:11]} cxd4 {[%emt 0:00:33]} 22. Nce2 {[%emt 0:00:37]} Bh6 {[%emt 0:00:50]} (22... Bd6 $14) 23. Nxd4 {[%emt 0:01:12] And now Ne6 would win.} Ne5 {[%emt 0:03:55]} 24. Qd1 {[%emt 0:00:20]} (24. Qe2 Ng6 $1 25. Qh5 (25. fxg6 Rxe2 26. Ngxe2 Ne8 $11) 25... Be3+ 26. Kh1 Nxh4 27. Qxh4 Bg5 $14) 24... Qd6 {[%emt 0:00:35]} (24... Rg8 $16 {was worth a try.}) 25. Kh1 $1 $18 {[%emt 0:02:20]} Rf8 {[%emt 0:01:45]} (25... Nd7 $16) 26. Nh5 {[%emt 0:00:44]} Rae8 {[%emt 0:00:53]} 27. b3 {[%emt 0:03:45] Prevents Nc4.} (27. Bg3 $18) 27... a4 {[%emt 0:00:23]} 28. b4 {[%emt 0:02:43]} ({White should try} 28. Rb1) 28... Rf7 $2 {[%emt 0:00:37]} (28... Nc4 $16) 29. Qxa4 {[%emt 0:00:53]} b5 {[%emt 0:01:01]} 30. Qc2 {[%emt 0:02:55]} Nc4 {[%emt 0:00:15][%cal Be5c4,Bc4e3,Be3g4][%mdl 32]} 31. Rfe1 {[%emt 0:00:52] Strongly threatening Rxe8+.} ({Don't play} 31. Bg3 $6 Qb6 32. Bf4 Bg5 $16) 31... Be3 {[%emt 0:00:43]} (31... Ne3 {was called for.} 32. Qc6 Qxc6 33. Nxc6 Bg5) 32. Bf2 {[%emt 0:02:15]} ({But not} 32. Bg3 $6 Qd7 33. Nf3 Rc8 $16) 32... Re4 {[%emt 0:00:59]} 33. Bxe3 {[%emt 0:00:31]} ({Better is} 33. Rad1 $18) 33... Nxe3 $16 {[%emt 0:00:10]} 34. Qd3 {[%emt 0:00:06][%mdl 8192]} (34. Qd2 $16 {and life is bright.} Nc4 35. Qf2) 34... Ng4 $19 {[%emt 0:01:13][%csl Gg4][%cal Rd6h2]} ({And not} 34... Rh4 {[#]} 35. h3 $1 Ng4 36. Qg3 $1 Qxg3 37. Nxg3 Nf2+ 38. Kg1 Nxh3+ 39. gxh3 $11) 35. Qg3 {[%emt 0:03:25]} Qxg3 {[%emt 0:00:02]} 36. Nxg3 {[%emt 0:00:04]} Rxd4 {[%emt 0:00:06] Weighted Error Value: White=0.38/Black=0.26 (precise)} 0-1

[Event "Uruguayan Championship 2022"]
[Site "Montevideo"]
[Date "2022.04.18"]
[Round "11.2"]
[White "Vaz Lacuesta, Leonardo"]
[Black "Granara Barreto, Sebastian"]
[Result "1/2-1/2"]
[ECO "C42"]
[WhiteElo "2018"]
[BlackElo "2131"]
[Annotator "TA"]
[PlyCount "45"]
[EventDate "2022.04.08"]
[EventType "tourn"]
[EventCountry "URU"]
[SourceTitle "playchess.com"]
[Source "ChessBase"]
[SourceQuality "1"]
[TimeControl "40/5400+30:1800+30"]

{[%evp 15,18,33,41,36,64]} 1. e4 {[%emt 0:00:03]} e5 {[%emt 0:00:07]} 2. Nf3 {[%emt 0:00:05]} Nf6 {[%emt 0:00:06]} 3. Nxe5 {[%emt 0:00:11]} d6 {[%emt 0:00:07]} 4. Nf3 {[%emt 0:00:05]} Nxe4 {[%emt 0:00:12]} 5. d4 {[%emt 0:00:07]} d5 {[%emt 0:00:14]} 6. Bd3 {[%emt 0:00:17]} Nf6 {[%emt 0:00:18]} 7. O-O {[%emt 0:00:13]} Be7 {[%emt 0:00:16]} 8. Re1 {[%emt 0:00:18]} O-O {[%emt 0:00:08]} 9. Bf4 {[%emt 0:00:26] C42: Petroff Defence: 3 Nxe5 and unusual White 3rd moves.} Bg4 {[%emt 0:00:37] [#]} {Predecessor:} 10. Nbd2 $146 Nc6 11. c3 Qd7 12. Qc2 h6 13. h3 Be6 14. Bh2 Bd6 15. Ne5 Qe7 16. f4 Bxe5 17. dxe5 Ne8 18. f5 Bd7 19. Nf3 Qc5+ 20. Kh1 Bc8 21. b4 Qb6 22. Bg1 d4 23. Nxd4 {1-0 (23) Megyaszai,B (1891)-Bodo,B (1740) Budapest 2021} 1/2-1/2

[Event "Uruguayan Championship 2022"]
[Site "Montevideo"]
[Date "2022.04.18"]
[Round "11.3"]
[White "Coppola, Claudio"]
[Black "Rodi, Luis Ernesto"]
[Result "0-1"]
[ECO "D30"]
[WhiteElo "2285"]
[BlackElo "2347"]
[Annotator "TA"]
[PlyCount "144"]
[EventDate "2022.04.08"]
[EventType "tourn"]
[EventCountry "URU"]
[SourceTitle "playchess.com"]
[Source "ChessBase"]
[SourceQuality "1"]
[TimeControl "40/5400+30:1800+30"]

{[%evp 10,144,0,-10,-6,-4,25,39,79,69,72,78,96,75,80,81,68,71,78,85,76,69,76,44,45,38,30,31,32,30,23,23,23,23,23,14,14,14,14,18,132,131,123,123,119,118,137,-140,-149,-142,-133,-358,-350,-332,-346,-403,-403,-399,-376,-461,-375,-672,-666,-637,-272,-387,-358,-441,-371,-12833,-12833,-12829,-12833,-1353,0,0,0,-28000,-28000,-28000,-28000,-28000,-28000,-28000,-28000,-28000,-28000,-28000,-28000,-28000,-28000,-28000,-28000,-28000,-28000,-27999,-27999,-27999,-27999,-27999,-27999,-27999,-28000,-27999,-28000,-28000,-28000,-28000,-28000,-28000,-28000,-28000,-28000,-28000,-28000,-28000,-28000,-28000,-28000,-28000,-28000,-28000,-28000,-28000,-28000,-28000,-28000,-28000,-28000,-27999,-27999,-27999,-27999,-27998,-27998,-27999,-27997]} 1. d4 {[%emt 0:02:31]} d5 {[%emt 0:00:06]} 2. c4 {[%emt 0:00:26]} e6 {[%emt 0:00:08]} 3. Nf3 {[%emt 0:00:03]} Nf6 {[%emt 0:00:07]} 4. g3 {[%emt 0:00:03]} Bb4+ {[%emt 0:00:11]} 5. Nbd2 {[%emt 0:00:18][%cal Bb1d2,Bd2c4,Bc4a5][%mdl 32]} dxc4 {[%emt 0:00:09]} 6. Bg2 {[%emt 0:00:29]} b5 {[%emt 0:02:23] Against Qa4. E04: Open Catalan: 5 Nf3.} 7. O-O {[%emt 0:02:19][%cal Od2c4]} Bb7 {[%emt 0:00:31] [#]} 8. Nxc4 $1 {[%emt 0:06:47] [#]} Nbd7 $146 {[%emt 0:07:14] [#] White is slightly better.} (8... bxc4 9. Qa4+) ({Predecessor:} 8... bxc4 9. Qa4+ Nc6 10. Ne5 Nd5 11. Nxc6 Qd7 12. Bxd5 exd5 13. Qxb4 Qxc6 14. b3 Qb6 {½-½ (56) Wagner,D (2581)-Kuzubov,Y (2642) Chess.com INT 2021}) 9. a3 $1 {[%emt 0:04:58]} Be7 {[%emt 0:02:36]} (9... Bd6 10. Na5) 10. Na5 {[%emt 0:00:42]} Bd5 {[%emt 0:00:18]} 11. Ne5 {[%emt 0:04:02]} Bxg2 {[%emt 0:07:10]} 12. Kxg2 {[%emt 0:00:26] Nec6 is the strong threat.} Nxe5 {[%emt 0:01:00]} 13. dxe5 {[%emt 0:00:07]} Qd5+ {[%emt 0:00:39]} 14. Qxd5 {[%emt 0:01:05]} Nxd5 {[%emt 0:00:05]} 15. e4 {[%emt 0:05:43]} Nb6 {[%emt 0:00:57]} 16. Be3 {[%emt 0:00:06]} c5 $1 {[%emt 0:00:40]} 17. b4 {[%emt 0:09:05]} cxb4 {[%emt 0:07:21]} 18. axb4 {[%emt 0:01:53] aiming for Rfc1.} Rc8 {[%emt 0:15:09]} 19. Rfc1 $36 {[%emt 0:20:27][%mdl 2048] White has good play.} Rxc1 {[%emt 0:05:08]} (19... Bxb4 $2 20. Nc6 $16) 20. Rxc1 {[%emt 0:00:05] Strongly threatening Rc7.} Bxb4 {[%emt 0:00:57]} 21. Nc6 {[%emt 0:13:29][%csl LRa7,LRb4]} Ba3 {[%emt 0:01:29]} 22. Rd1 {[%emt 0:00:27][%csl Gc6][%cal Rd1d8]} O-O $1 {[%emt 0:20:13]} 23. Nxa7 {[%emt 0:00:34]} Nc4 {[%emt 0:00:23]} 24. Nxb5 {[%emt 0:01:56]} Bb2 {[%emt 0:02:06]} (24... Nxe3+ $11 {remains equal.} 25. fxe3 Bb2) 25. Bc5 $16 {[%emt 0:01:22]} Rb8 {[%emt 0:01:23] [#]} 26. f4 $1 {[%emt 0:00:50][%cal Od1d7]} h5 {[%emt 0:08:25]} (26... g6 27. Nd6) 27. Nd6 {[%emt 0:01:26]} Ba3 {[%emt 0:00:32]} 28. Bxa3 $2 {[%emt 0:01:04][%mdl 8192]} (28. Bf2 $16 Na5 29. Kh3) 28... Ne3+ $17 {[%emt 0:00:14]} 29. Kh3 {[%emt 0:06:11]} Nxd1 {[%emt 0:00:14][%mdl 4096] Endgame KRN-KBN} 30. f5 $2 {[%emt 0:01:15]} (30. Kh4 $17 {is a better defense.}) 30... Nf2+ $19 {[%emt 0:02:38]} 31. Kh4 {[%emt 0:01:11]} Nd3 {[%emt 0:00:20]} 32. fxe6 {[%emt 0:01:58]} fxe6 {[%emt 0:00:12]} 33. Nc4 {[%emt 0:01:32]} Rc8 {[%emt 0:00:29]} 34. Nb6 {[%emt 0:01:03]} Rc2 {[%emt 0:00:57]} 35. h3 {[%emt 0:01:51]} (35. Kxh5 Nxe5 36. Kg5) 35... Nxe5 {[%emt 0:00:17]} 36. Kxh5 {[%emt 0:00:35]} Nc4 {[%emt 0:02:01]} (36... Rc6 $142 37. Nd5 exd5 38. exd5 Rh6+ 39. Kg5 Rxh3) 37. Nxc4 {[%emt 0:03:34]} (37. Bc5 $142) 37... Rxc4 {[%emt 0:00:07] KR-KB} 38. Kg6 {[%emt 0:03:19]} Rxe4 {[%emt 0:01:48] And now ...Re3 would win.} 39. Bb2 $2 {[%emt 0:00:08]} (39. Bd6) 39... Re3 {[%emt 0:00:09]} 40. g4 {[%emt 0:00:04]} e5 {[%emt 0:03:41]} 41. Kf5 {[%emt 0:06:32] [#]} e4 $2 {[%emt 0:01:59]} (41... g6+ $1 $19 42. Kg5 e4) 42. Kf4 $11 {[%emt 0:02:44]} Rxh3 {[%emt 0:08:07][%mdl 8192]} (42... Re1 $11 43. Bc3 Rh1) 43. Kxe4 {[%emt 0:00:13] White is now going downhill.} Rg3 {[%emt 0:00:07] Black mates.} 44. Kf5 {[%emt 0:03:06]} Kf7 {[%emt 0:00:15]} 45. Be5 {[%emt 0:01:13]} Rg1 {[%emt 0:01:15]} 46. Bd4 {[%emt 0:01:09]} Rf1+ {[%emt 0:00:12]} 47. Kg5 {[%emt 0:00:13]} Rd1 {[%emt 0:00:22]} 48. Bc3 {[%emt 0:01:09]} Rd5+ {[%emt 0:00:09]} 49. Kh4 {[%emt 0:00:22]} Kg6 {[%emt 0:00:31]} 50. Bb4 {[%emt 0:03:56]} Rd3 {[%emt 0:01:34]} 51. Be7 {[%emt 0:00:53]} Rd1 {[%emt 0:00:44]} 52. Kg3 {[%emt 0:02:23]} Rd7 {[%emt 0:01:07]} 53. Bc5 {[%emt 0:02:49]} Kf6 {[%emt 0:00:32]} 54. Kf4 {[%emt 0:01:36]} Rd1 {[%emt 0:01:34]} 55. Be3 {[%emt 0:01:05]} Rf1+ {[%emt 0:01:22]} 56. Ke4 {[%emt 0:01:12]} g5 {[%emt 0:02:56]} 57. Bd2 {[%emt 0:01:34]} Rg1 {[%emt 0:01:36]} 58. Kf3 {[%emt 0:00:07]} Rb1 {[%emt 0:00:07]} 59. Be3 {[%emt 0:04:11]} Rb4 {[%emt 0:02:05]} 60. Bd2 {[%emt 0:00:53]} Rb3+ {[%emt 0:00:45]} 61. Be3 {[%emt 0:00:26]} Rb5 {[%emt 0:01:37]} 62. Bd2 {[%emt 0:01:04]} Ke6 {[%emt 0:00:17]} 63. Be3 {[%emt 0:00:40]} Rd5 {[%emt 0:00:43]} 64. Bc1 {[%emt 0:00:47]} Kd6 {[%emt 0:01:08]} 65. Be3 {[%emt 0:00:08]} Kc6 {[%emt 0:00:41]} 66. Ke4 {[%emt 0:00:21]} Rb5 {[%emt 0:01:32]} 67. Bd4 {[%emt 0:03:13]} Kd6 {[%emt 0:00:10]} 68. Bc3 {[%emt 0:02:23]} Ke6 {[%emt 0:00:07]} 69. Bd4 {[%emt 0:01:04]} Rb4 {[%emt 0:00:15]} 70. Ke3 {[%emt 0:00:40]} Kd5 {[%emt 0:00:10]} 71. Bf6 {[%emt 0:00:08]} Rxg4 {[%emt 0:00:07]} 72. Bd8 {[%emt 0:00:24]} Ke5 {[%emt 0:00:30] Weighted Error Value: White=0.40/Black=0.23 (precise)} 0-1

[Event "Uruguayan Championship 2022"]
[Site "Montevideo"]
[Date "2022.04.18"]
[Round "11.4"]
[White "Hoffman, Alejandro"]
[Black "Palacio, Enzo"]
[Result "1-0"]
[ECO "A45"]
[WhiteElo "2403"]
[BlackElo "1896"]
[Annotator "TA"]
[PlyCount "67"]
[EventDate "2022.04.08"]
[EventType "tourn"]
[EventCountry "URU"]
[SourceTitle "playchess.com"]
[Source "ChessBase"]
[SourceQuality "1"]
[TimeControl "40/5400+30:1800+30"]

{[%evp 16,67,50,39,61,57,83,83,88,63,92,80,93,87,135,133,127,128,136,129,138,112,127,111,120,106,130,158,211,152,220,206,233,231,216,224,247,218,302,247,352,355,811,802,791,770,1252,1207,1217,1236,1236,1206,1074,923]} 1. d4 {[%emt 0:00:06]} Nf6 {[%emt 0:00:05]} 2. g3 {[%emt 0:00:18]} g6 {[%emt 0:01:27]} 3. Bg2 {[%emt 0:00:08]} Bg7 {[%emt 0:00:34]} 4. e4 {[%emt 0:00:28]} d6 {[%emt 0:01:41]} 5. Ne2 {[%emt 0:02:12]} Nbd7 {[%emt 0:03:17]} 6. O-O {[%emt 0:02:13]} O-O {[%emt 0:00:45]} 7. Nbc3 {[%emt 0:01:36]} e5 {[%emt 0:02:27]} 8. h3 {[%emt 0:02:29]} h6 {[%emt 0:05:38]} 9. Be3 {[%emt 0:03:27]} c6 {[%emt 0:02:34] B07: Pirc Defence: Miscellaneous Systems.} 10. a4 {[%emt 0:01:31][%cal Ba2a4,Ba4a5][%mdl 32]} a6 {[%emt 0:08:53]} 11. Qd2 {[%emt 0:09:53]} Kh7 {[%emt 0:00:25] [#] White is better.} 12. Rfd1 $146 {[%emt 0:01:00]} ({Predecessor:} 12. a5 Ng8 13. f4 b6 14. dxe5 dxe5 15. axb6 exf4 16. gxf4 Rb8 17. Rfd1 Qh4 18. Bf2 {1-0 (34) Mainka,G (2370)-Neugebauer,J Weilburg 1996}) 12... Qc7 {[%emt 0:06:31]} 13. a5 {[%emt 0:04:17]} Re8 {[%emt 0:10:03]} 14. b3 {[%emt 0:18:03]} Rb8 {[%emt 0:11:06]} (14... exd4 $142 15. Bxd4 (15. Nxd4 Nc5 $11) 15... Nc5) 15. dxe5 $16 {[%emt 0:03:25]} dxe5 {[%emt 0:01:16]} 16. Na4 {[%emt 0:00:13]} Bf8 {[%emt 0:03:47]} 17. Qc3 {[%emt 0:03:04]} Re6 {[%emt 0:11:28]} 18. Nc1 {[%emt 0:06:07]} Ne8 {[%emt 0:09:51]} 19. Nd3 {[%emt 0:03:48]} Nd6 {[%emt 0:06:16]} 20. b4 {[%emt 0:13:32] 0x0.00203746de3adp-1022s more active pieces. The black rooks are badly placed.} Bg7 {[%emt 0:04:26]} 21. Qb3 {[%emt 0:01:34]} Ra8 {[%emt 0:00:58]} (21... Re8 $16 22. c3 f5) 22. c3 {[%emt 0:01:04]} Kg8 {[%emt 0:00:38]} (22... Re8 $16 23. Rd2 f5) 23. Rd2 Re8 {[%emt 0:02:46]} 24. Rad1 {[%emt 0:01:50]} Bf8 {[%emt 0:00:43]} 25. f3 {[%emt 0:03:42]} Kg7 {[%emt 0:00:34]} 26. h4 {[%emt 0:01:28]} h5 {[%emt 0:01:53]} 27. Kh2 {[%emt 0:02:49]} f6 {[%emt 0:01:32]} (27... Nb5 $142 28. Bf1 Rb8) 28. Bh3 $18 {[%emt 0:00:39]} Re7 $2 {[%emt 0:02:18] [#]} (28... f5 29. Ndc5 Nxc5 30. Nxc5 Qf7 31. Rxd6 Qxb3 32. Nxb3 Bxd6) 29. Ndc5 {[%emt 0:01:20] White is clearly winning.} Nxc5 {[%emt 0:00:30]} 30. Bxc5 {[%emt 0:00:53]} Nf7 {[%emt 0:00:35]} 31. Bxe7 {[%emt 0:00:11]} Qxe7 {[%emt 0:00:24]} 32. Bxc8 {[%emt 0:00:39]} Rxc8 {[%emt 0:00:06]} 33. Rd7 {[%emt 0:00:15]} Qe8 {[%emt 0:00:34]} 34. Rxb7 {[%emt 0:00:34] Black did not feel at home in the position after the opening.  Weighted Error Value: White=0.09 (flawless) /Black=0.28 (precise)} 1-0